[Event "Titled Tuesday Blitz July 27 2021"]
[White "Tang, Andrew"]
[Black "Muradli, Mahammad"]
[WhiteFideId "2059630"]
[BlackFideId "13409301"]
[WhiteElo "2599"]
[BlackElo "2482"]
[Result "1-0"]
[Round "05"]
[TimeControl "180+1"]
[Date "2021.07.27"]
[WhiteClock "0:00:08"]
[BlackClock "0:00:07"]

1. d4 {[%clk 0:02:31]}  d5 {[%clk 0:02:59]} 2. Bf4 {[%clk 0:02:30]}  g6 {[%clk 0:02:57]} 3. e3 {[%clk 0:02:20]}  Bg7 {[%clk 0:02:57]} 4. Nc3 {[%clk 0:02:14]}  c6 {[%clk 0:02:56]} 5. h4 {[%clk 0:02:13]}  h5 {[%clk 0:02:49]} 6. Nf3 {[%clk 0:02:13]}  Bg4 {[%clk 0:02:49]} 7. Be2 {[%clk 0:02:13]}  Nd7 {[%clk 0:02:47]} 8. e4 {[%clk 0:02:04]}  dxe4 {[%clk 0:02:41]} 9. Nxe4 {[%clk 0:02:05]}  Ngf6 {[%clk 0:02:41]} 10. Neg5 {[%clk 0:01:46]}  Nd5 {[%clk 0:02:07]} 11. Bg3 {[%clk 0:01:30]}  O-O {[%clk 0:02:03]} 12. O-O {[%clk 0:01:25]}  Bxf3 {[%clk 0:01:52]} 13. Nxf3 {[%clk 0:01:13]}  Re8 {[%clk 0:01:49]} 14. c4 {[%clk 0:01:03]}  N5f6 {[%clk 0:01:49]} 15. Qc2 {[%clk 0:00:58]}  Qa5 {[%clk 0:01:37]} 16. b4 {[%clk 0:00:47]}  Qxb4 {[%clk 0:01:29]} 17. Rab1 {[%clk 0:00:48]}  Qa5 {[%clk 0:01:30]} 18. Rxb7 {[%clk 0:00:48]}  Nb6 {[%clk 0:01:24]} 19. Ne5 {[%clk 0:00:44]}  Rad8 {[%clk 0:01:24]} 20. Nxc6 {[%clk 0:00:43]}  Qa6 {[%clk 0:01:17]} 21. Rxa7 {[%clk 0:00:43]}  Qc8 {[%clk 0:01:13]} 22. Nxe7+ {[%clk 0:00:31]}  Rxe7 {[%clk 0:01:13]} 23. Rxe7 {[%clk 0:00:32]}  Rxd4 {[%clk 0:01:10]} 24. c5 {[%clk 0:00:31]}  Nbd5 {[%clk 0:01:10]} 25. Ra7 {[%clk 0:00:26]}  Ne4 {[%clk 0:01:09]} 26. Ba6 {[%clk 0:00:21]}  Qg4 {[%clk 0:00:52]} 27. Qe2 {[%clk 0:00:19]}  Qf5 {[%clk 0:00:24]} 28. c6 {[%clk 0:00:16]}  Rd2 {[%clk 0:00:21]} 29. Qf3 {[%clk 0:00:15]}  Nxg3 {[%clk 0:00:18]} 30. Qxg3 {[%clk 0:00:12]}  Be5 {[%clk 0:00:17]} 31. Qf3 {[%clk 0:00:11]}  Nf4 {[%clk 0:00:13]} 32. c7 {[%clk 0:00:10]}  Rc2 {[%clk 0:00:11]} 33. c8=Q+ {[%clk 0:00:10]}  Rxc8 {[%clk 0:00:09]} 34. Bxc8 {[%clk 0:00:10]}  Qf6 {[%clk 0:00:07]} 35. Rd1 {[%clk 0:00:08]} 1-0


[Site "https://www.chess.com"]

[Event "Titled Tuesday Blitz July 27 2021"]
[White "Terry, Renato"]
[Black "Hasangatin, Ramil"]
[WhiteFideId "3803457"]
[BlackFideId "4122160"]
[WhiteElo "2581"]
[BlackElo "2375"]
[Result "1-0"]
[Round "05"]
[TimeControl "180+1"]
[Date "2021.07.27"]
[WhiteClock "0:00:08"]
[BlackClock "0:00:09"]

1. e4 {[%clk 0:03:00]}  d5 {[%clk 0:02:52]} 2. exd5 {[%clk 0:03:00]}  Qxd5 {[%clk 0:02:53]} 3. Nc3 {[%clk 0:03:00]}  Qd6 {[%clk 0:02:52]} 4. Nb5 {[%clk 0:03:00]}  Qd8 {[%clk 0:02:50]} 5. Bc4 {[%clk 0:02:59]}  c6 {[%clk 0:02:49]} 6. Nc3 {[%clk 0:02:58]}  Nf6 {[%clk 0:02:49]} 7. Nf3 {[%clk 0:02:57]}  Qd6 {[%clk 0:02:49]} 8. h3 {[%clk 0:02:56]}  Bf5 {[%clk 0:02:48]} 9. d3 {[%clk 0:02:56]}  e6 {[%clk 0:02:47]} 10. Nh4 {[%clk 0:02:54]}  Bg6 {[%clk 0:02:47]} 11. O-O {[%clk 0:02:53]}  Nbd7 {[%clk 0:02:46]} 12. Qe2 {[%clk 0:02:51]}  Be7 {[%clk 0:02:46]} 13. Re1 {[%clk 0:02:47]}  O-O {[%clk 0:02:44]} 14. Nxg6 {[%clk 0:02:46]}  hxg6 {[%clk 0:02:43]} 15. a4 {[%clk 0:02:30]}  a5 {[%clk 0:02:42]} 16. Bg5 {[%clk 0:02:30]}  Rfe8 {[%clk 0:02:40]} 17. Rad1 {[%clk 0:02:15]}  Rad8 {[%clk 0:02:39]} 18. d4 {[%clk 0:02:10]}  Nb6 {[%clk 0:02:35]} 19. Bb3 {[%clk 0:02:10]}  Nbd5 {[%clk 0:02:35]} 20. Nxd5 {[%clk 0:02:05]}  Nxd5 {[%clk 0:02:23]} 21. Bc1 {[%clk 0:02:02]}  Qc7 {[%clk 0:02:17]} 22. c3 {[%clk 0:02:00]}  Bd6 {[%clk 0:02:16]} 23. g3 {[%clk 0:01:54]}  Be7 {[%clk 0:01:52]} 24. h4 {[%clk 0:01:49]}  Bf6 {[%clk 0:01:48]} 25. Qf3 {[%clk 0:01:43]}  Rd7 {[%clk 0:01:41]} 26. Kg2 {[%clk 0:01:37]}  Red8 {[%clk 0:01:41]} 27. Rh1 {[%clk 0:01:33]}  c5 {[%clk 0:01:36]} 28. h5 {[%clk 0:01:33]}  gxh5 {[%clk 0:01:28]} 29. Rxh5 {[%clk 0:01:21]}  cxd4 {[%clk 0:01:22]} 30. cxd4 {[%clk 0:01:09]}  Qc6 {[%clk 0:01:16]} 31. Rdh1 {[%clk 0:00:52]}  Kf8 {[%clk 0:01:15]} 32. Bg5 {[%clk 0:00:44]}  Ke7 {[%clk 0:01:12]} 33. Rc1 {[%clk 0:00:14]}  Qb6 {[%clk 0:01:01]} 34. Bxd5 {[%clk 0:00:09]}  Rxd5 {[%clk 0:01:01]} 35. Bxf6+ {[%clk 0:00:09]}  gxf6 {[%clk 0:01:00]} 36. Qa3+ {[%clk 0:00:08]}  Qd6 {[%clk 0:00:51]} 37. Rc7+ {[%clk 0:00:04]}  Rd7 {[%clk 0:00:51]} 38. Rxd5 {[%clk 0:00:03]}  exd5 {[%clk 0:00:43]} 39. Qxd6+ {[%clk 0:00:03]}  Kxd6 {[%clk 0:00:43]} 40. Rxd7+ {[%clk 0:00:04]}  Kxd7 {[%clk 0:00:44]} 41. Kf3 {[%clk 0:00:02]}  b5 {[%clk 0:00:19]} 42. b3 {[%clk 0:00:02]}  bxa4 {[%clk 0:00:19]} 43. bxa4 {[%clk 0:00:03]}  f5 {[%clk 0:00:15]} 44. Kf4 {[%clk 0:00:03]}  Ke6 {[%clk 0:00:15]} 45. Kg5 {[%clk 0:00:03]}  f4 {[%clk 0:00:08]} 46. Kxf4 {[%clk 0:00:02]}  Kf6 {[%clk 0:00:08]} 47. g4 {[%clk 0:00:02]}  Kg6 {[%clk 0:00:08]} 48. g5 {[%clk 0:00:02]}  f6 {[%clk 0:00:07]} 49. gxf6 {[%clk 0:00:03]}  Kxf6 {[%clk 0:00:08]} 50. Kg4 {[%clk 0:00:04]}  Kg6 {[%clk 0:00:08]} 51. f4 {[%clk 0:00:05]}  Kf6 {[%clk 0:00:08]} 52. f5 {[%clk 0:00:06]}  Kf7 {[%clk 0:00:08]} 53. Kg5 {[%clk 0:00:06]}  Kg7 {[%clk 0:00:08]} 54. f6+ {[%clk 0:00:07]}  Kf7 {[%clk 0:00:09]} 55. Kf5 {[%clk 0:00:08]} 1-0


[Site "https://www.chess.com"]

[Event "Titled Tuesday Blitz July 27 2021"]
[White "Zubov, Alexander"]
[Black "Kretov, Evgenij"]
[WhiteFideId "14109409"]
[BlackFideId "4167821"]
[WhiteElo "2740"]
[BlackElo "2400"]
[Result "1-0"]
[Round "05"]
[TimeControl "180+1"]
[Date "2021.07.27"]
[WhiteClock "0:01:32"]
[BlackClock "0:01:17"]

1. d4 {[%clk 0:03:00]}  Nf6 {[%clk 0:02:59]} 2. Nf3 {[%clk 0:03:00]}  e6 {[%clk 0:02:56]} 3. c4 {[%clk 0:03:00]}  b6 {[%clk 0:02:56]} 4. a3 {[%clk 0:03:00]}  Bb7 {[%clk 0:02:55]} 5. Nc3 {[%clk 0:03:00]}  d5 {[%clk 0:02:55]} 6. Bg5 {[%clk 0:02:59]}  Be7 {[%clk 0:02:54]} 7. e3 {[%clk 0:02:59]}  O-O {[%clk 0:02:54]} 8. Rc1 {[%clk 0:02:59]}  Nbd7 {[%clk 0:02:52]} 9. cxd5 {[%clk 0:02:59]}  Nxd5 {[%clk 0:02:52]} 10. Nxd5 {[%clk 0:02:59]}  Bxg5 {[%clk 0:02:48]} 11. Nxc7 {[%clk 0:02:59]}  Rc8 {[%clk 0:02:48]} 12. Nb5 {[%clk 0:03:00]}  Bxf3 {[%clk 0:02:31]} 13. gxf3 {[%clk 0:02:59]}  Nf6 {[%clk 0:02:27]} 14. Rxc8 {[%clk 0:02:32]}  Qxc8 {[%clk 0:02:26]} 15. Nc3 {[%clk 0:02:17]}  Rd8 {[%clk 0:02:23]} 16. f4 {[%clk 0:02:09]}  Bh4 {[%clk 0:02:08]} 17. Bg2 {[%clk 0:02:04]}  Qa6 {[%clk 0:01:54]} 18. Qe2 {[%clk 0:02:03]}  Qxe2+ {[%clk 0:01:51]} 19. Kxe2 {[%clk 0:02:03]}  Rc8 {[%clk 0:01:49]} 20. Bf3 {[%clk 0:01:58]}  Kf8 {[%clk 0:01:48]} 21. Ra1 {[%clk 0:01:51]}  Nd7 {[%clk 0:01:48]} 22. Bb7 {[%clk 0:01:45]}  Rc7 {[%clk 0:01:47]} 23. Ba6 {[%clk 0:01:45]}  Nb8 {[%clk 0:01:40]} 24. Bd3 {[%clk 0:01:44]}  g6 {[%clk 0:01:39]} 25. Nb5 {[%clk 0:01:42]}  Rd7 {[%clk 0:01:37]} 26. Rc1 {[%clk 0:01:42]}  Na6 {[%clk 0:01:32]} 27. Rc8+ {[%clk 0:01:40]}  Ke7 {[%clk 0:01:33]} 28. b4 {[%clk 0:01:36]}  Rd8 {[%clk 0:01:23]} 29. Nxa7 {[%clk 0:01:33]}  Nb8 {[%clk 0:01:17]} 30. Rxb8 {[%clk 0:01:32]} 1-0


[Site "https://www.chess.com"]

[Event "Titled Tuesday Blitz July 27 2021"]
[White "Ahmadzada, Ahmad"]
[Black "Katz, Alexander"]
[WhiteFideId "13413007"]
[BlackFideId "2039796"]
[WhiteElo "2226"]
[BlackElo "2371"]
[Result "1-0"]
[Round "06"]
[TimeControl "180+1"]
[Date "2021.07.27"]
[WhiteClock "0:00:05"]
[BlackClock "0:00:05"]

1. Nf3 {[%clk 0:03:00]}  Nf6 {[%clk 0:02:58]} 2. g3 {[%clk 0:03:00]}  e6 {[%clk 0:02:59]} 3. Bg2 {[%clk 0:03:01]}  d5 {[%clk 0:02:59]} 4. O-O {[%clk 0:03:01]}  Be7 {[%clk 0:03:00]} 5. c4 {[%clk 0:03:01]}  dxc4 {[%clk 0:03:00]} 6. Qa4+ {[%clk 0:03:00]}  c6 {[%clk 0:03:00]} 7. Qxc4 {[%clk 0:03:01]}  b5 {[%clk 0:03:01]} 8. Qc2 {[%clk 0:03:00]}  Bb7 {[%clk 0:03:01]} 9. d4 {[%clk 0:03:00]}  O-O {[%clk 0:03:01]} 10. Nc3 {[%clk 0:03:00]}  Nbd7 {[%clk 0:02:59]} 11. Rd1 {[%clk 0:02:58]}  Rc8 {[%clk 0:02:56]} 12. Bg5 {[%clk 0:02:53]}  b4 {[%clk 0:02:50]} 13. Ne4 {[%clk 0:02:37]}  Nxe4 {[%clk 0:02:31]} 14. Bxe7 {[%clk 0:02:35]}  Qxe7 {[%clk 0:02:32]} 15. Qxe4 {[%clk 0:02:34]}  Nf6 {[%clk 0:02:32]} 16. Qf4 {[%clk 0:02:17]}  c5 {[%clk 0:02:26]} 17. dxc5 {[%clk 0:02:16]}  Qxc5 {[%clk 0:02:23]} 18. Rac1 {[%clk 0:02:15]}  Qb6 {[%clk 0:02:21]} 19. Ne5 {[%clk 0:02:07]}  Bxg2 {[%clk 0:02:10]} 20. Kxg2 {[%clk 0:02:07]}  Rfd8 {[%clk 0:02:08]} 21. Rxd8+ {[%clk 0:01:36]}  Rxd8 {[%clk 0:02:00]} 22. Nc6 {[%clk 0:01:28]}  Nd5 {[%clk 0:01:32]} 23. Qf3 {[%clk 0:01:26]}  Rc8 {[%clk 0:01:27]} 24. Ne5 {[%clk 0:01:22]}  Rc7 {[%clk 0:00:45]} 25. e4 {[%clk 0:00:42]}  Nf6 {[%clk 0:00:37]} 26. Rd1 {[%clk 0:00:37]}  Rc2 {[%clk 0:00:31]} 27. Nd7 {[%clk 0:00:36]}  Nxd7 {[%clk 0:00:22]} 28. Rxd7 {[%clk 0:00:35]}  f6 {[%clk 0:00:19]} 29. e5 {[%clk 0:00:17]}  Qc6 {[%clk 0:00:20]} 30. Qxc6 {[%clk 0:00:13]}  Rxc6 {[%clk 0:00:20]} 31. exf6 {[%clk 0:00:13]}  gxf6 {[%clk 0:00:21]} 32. Rxa7 {[%clk 0:00:13]}  Rc2 {[%clk 0:00:22]} 33. b3 {[%clk 0:00:13]}  h5 {[%clk 0:00:19]} 34. Kf3 {[%clk 0:00:11]}  Kf8 {[%clk 0:00:19]} 35. h4 {[%clk 0:00:09]}  Ke8 {[%clk 0:00:19]} 36. Ke3 {[%clk 0:00:09]}  Kf8 {[%clk 0:00:18]} 37. f3 {[%clk 0:00:05]}  Ke8 {[%clk 0:00:17]} 38. Kf4 {[%clk 0:00:05]}  Kf8 {[%clk 0:00:17]} 39. Ra5 {[%clk 0:00:04]}  Kf7 {[%clk 0:00:16]} 40. Rxh5 {[%clk 0:00:04]}  Rxa2 {[%clk 0:00:16]} 41. Rb5 {[%clk 0:00:04]}  Rc2 {[%clk 0:00:04]} 42. Rxb4 {[%clk 0:00:04]}  Rc3 {[%clk 0:00:04]} 43. g4 {[%clk 0:00:04]}  Kg6 {[%clk 0:00:04]} 44. h5+ {[%clk 0:00:04]}  Kh6 {[%clk 0:00:05]} 45. Rb6 {[%clk 0:00:05]}  e5+ {[%clk 0:00:05]} 46. Ke4 {[%clk 0:00:05]}  Kg5 {[%clk 0:00:05]} 47. Rb8 {[%clk 0:00:06]}  Rc1 {[%clk 0:00:04]} 48. Rg8+ {[%clk 0:00:06]}  Kh4 {[%clk 0:00:04]} 49. h6 {[%clk 0:00:06]}  Rc7 {[%clk 0:00:05]} 50. Rg7 {[%clk 0:00:05]}  Rc8 {[%clk 0:00:05]} 51. h7 {[%clk 0:00:06]}  Rh8 {[%clk 0:00:06]} 52. b4 {[%clk 0:00:04]}  Kg3 {[%clk 0:00:06]} 53. b5 {[%clk 0:00:05]}  Kf2 {[%clk 0:00:05]} 54. b6 {[%clk 0:00:05]} 1-0


[Site "https://www.chess.com"]

[Event "Titled Tuesday Blitz July 27 2021"]
[White "Aldokhin, Ivan"]
[Black "Radu, David Cr."]
[WhiteFideId "24115720"]
[BlackFideId "1265717"]
[WhiteElo "2306"]
[BlackElo "1661"]
[Result "0-1"]
[Round "06"]
[TimeControl "180+1"]
[Date "2021.07.27"]
[WhiteClock "0:00:06"]
[BlackClock "0:00:06"]

1. e4 {[%clk 0:02:49]}  c5 {[%clk 0:02:59]} 2. Nf3 {[%clk 0:02:46]}  d6 {[%clk 0:02:59]} 3. d4 {[%clk 0:02:44]}  cxd4 {[%clk 0:03:00]} 4. Nxd4 {[%clk 0:02:45]}  Nf6 {[%clk 0:03:00]} 5. Nc3 {[%clk 0:02:45]}  Nc6 {[%clk 0:03:01]} 6. Bg5 {[%clk 0:02:42]}  e6 {[%clk 0:03:00]} 7. Qd2 {[%clk 0:02:42]}  a6 {[%clk 0:02:58]} 8. O-O-O {[%clk 0:02:39]}  Bd7 {[%clk 0:02:58]} 9. h4 {[%clk 0:02:37]}  h6 {[%clk 0:02:52]} 10. Be3 {[%clk 0:02:27]}  Ne5 {[%clk 0:02:43]} 11. f3 {[%clk 0:02:24]}  h5 {[%clk 0:02:41]} 12. Bg5 {[%clk 0:02:11]}  Be7 {[%clk 0:02:41]} 13. f4 {[%clk 0:02:09]}  Neg4 {[%clk 0:02:38]} 14. Nf3 {[%clk 0:01:54]}  Bc6 {[%clk 0:02:30]} 15. Bd3 {[%clk 0:01:49]}  b5 {[%clk 0:02:25]} 16. f5 {[%clk 0:01:13]}  e5 {[%clk 0:01:56]} 17. Nd5 {[%clk 0:00:36]}  Bxd5 {[%clk 0:01:47]} 18. exd5 {[%clk 0:00:36]}  O-O {[%clk 0:01:46]} 19. Nh2 {[%clk 0:00:26]}  Nxh2 {[%clk 0:01:36]} 20. Rxh2 {[%clk 0:00:26]}  Ng4 {[%clk 0:01:34]} 21. Rh3 {[%clk 0:00:24]}  Bf6 {[%clk 0:01:34]} 22. Be2 {[%clk 0:00:22]}  Nf2 {[%clk 0:01:17]} 23. Rg3 {[%clk 0:00:20]}  Ne4 {[%clk 0:01:13]} 24. Qe3 {[%clk 0:00:20]}  Nxg3 {[%clk 0:01:10]} 25. Qxg3 {[%clk 0:00:21]}  Bxg5+ {[%clk 0:01:03]} 26. hxg5 {[%clk 0:00:20]}  g6 {[%clk 0:01:03]} 27. Bd3 {[%clk 0:00:19]}  Kg7 {[%clk 0:01:02]} 28. f6+ {[%clk 0:00:18]}  Kg8 {[%clk 0:00:46]} 29. Rh1 {[%clk 0:00:18]}  Qd7 {[%clk 0:00:44]} 30. Rh4 {[%clk 0:00:14]}  Rfc8 {[%clk 0:00:36]} 31. Qf3 {[%clk 0:00:12]}  e4 {[%clk 0:00:32]} 32. Bxe4 {[%clk 0:00:10]}  Rc4 {[%clk 0:00:28]} 33. Rxh5 {[%clk 0:00:04]}  Qd8 {[%clk 0:00:13]} 34. Bxg6 {[%clk 0:00:01]}  fxg6 {[%clk 0:00:11]} 35. f7+ {[%clk 0:00:02]}  Kg7 {[%clk 0:00:11]} 36. Rh6 {[%clk 0:00:02]}  Qxg5+ {[%clk 0:00:08]} 37. Kb1 {[%clk 0:00:02]}  Qxh6 {[%clk 0:00:08]} 38. b3 {[%clk 0:00:03]}  Rf4 {[%clk 0:00:07]} 39. Qe3 {[%clk 0:00:03]}  Rxf7 {[%clk 0:00:06]} 40. Qd4+ {[%clk 0:00:03]}  Kg8 {[%clk 0:00:05]} 41. g4 {[%clk 0:00:03]}  Qg7 {[%clk 0:00:05]} 42. Qd2 {[%clk 0:00:02]}  Qe5 {[%clk 0:00:05]} 43. a3 {[%clk 0:00:02]}  Rf4 {[%clk 0:00:05]} 44. Ka2 {[%clk 0:00:02]}  Rc8 {[%clk 0:00:05]} 45. Qd3 {[%clk 0:00:03]}  Kg7 {[%clk 0:00:04]} 46. g5 {[%clk 0:00:03]}  Qc3 {[%clk 0:00:04]} 47. Qxc3+ {[%clk 0:00:01]}  Rxc3 {[%clk 0:00:05]} 48. Kb2 {[%clk 0:00:02]}  Rff3 {[%clk 0:00:05]} 49. b4 {[%clk 0:00:02]}  Rg3 {[%clk 0:00:06]} 50. Kb1 {[%clk 0:00:02]}  Rxg5 {[%clk 0:00:05]} 51. Kb2 {[%clk 0:00:03]}  Rgg3 {[%clk 0:00:06]} 52. a4 {[%clk 0:00:03]}  g5 {[%clk 0:00:07]} 53. axb5 {[%clk 0:00:03]}  Rgf3 {[%clk 0:00:08]} 54. bxa6 {[%clk 0:00:03]}  Rc7 {[%clk 0:00:07]} 55. b5 {[%clk 0:00:04]}  Rff7 {[%clk 0:00:06]} 56. Kb3 {[%clk 0:00:04]}  Ra7 {[%clk 0:00:05]} 57. c4 {[%clk 0:00:03]}  g4 {[%clk 0:00:06]} 58. Kb4 {[%clk 0:00:02]}  g3 {[%clk 0:00:06]} 59. Ka5 {[%clk 0:00:03]}  g2 {[%clk 0:00:06]} 60. b6 {[%clk 0:00:04]}  g1=Q {[%clk 0:00:05]} 61. c5 {[%clk 0:00:05]}  Qxc5+ {[%clk 0:00:04]} 62. Ka4 {[%clk 0:00:05]}  Qxb6 {[%clk 0:00:05]} 63. Ka3 {[%clk 0:00:06]}  Rxa6# {[%clk 0:00:06]} 0-1


[Site "https://www.chess.com"]

[Event "Titled Tuesday Blitz July 27 2021"]
[White "Asadli, Vugar"]
[Black "Mortazavi, Ali"]
[WhiteFideId "13405764"]
[BlackFideId "401323"]
[WhiteElo "2386"]
[BlackElo "2339"]
[Result "1-0"]
[Round "06"]
[TimeControl "180+1"]
[Date "2021.07.27"]
[WhiteClock "0:00:50"]
[BlackClock "0:00:02"]

1. e4 {[%clk 0:03:00]}  c6 {[%clk 0:03:00]} 2. d4 {[%clk 0:02:57]}  d5 {[%clk 0:03:00]} 3. e5 {[%clk 0:02:58]}  Bf5 {[%clk 0:03:00]} 4. Nc3 {[%clk 0:02:58]}  e6 {[%clk 0:02:59]} 5. g4 {[%clk 0:02:59]}  Bg6 {[%clk 0:02:59]} 6. Nge2 {[%clk 0:02:59]}  Ne7 {[%clk 0:02:57]} 7. Nf4 {[%clk 0:02:55]}  Nd7 {[%clk 0:02:41]} 8. h4 {[%clk 0:02:51]}  h6 {[%clk 0:02:36]} 9. Nxg6 {[%clk 0:02:49]}  Nxg6 {[%clk 0:02:34]} 10. h5 {[%clk 0:02:49]}  Ne7 {[%clk 0:02:33]} 11. Ne2 {[%clk 0:02:41]}  c5 {[%clk 0:02:25]} 12. c3 {[%clk 0:02:41]}  Nc6 {[%clk 0:02:25]} 13. Bg2 {[%clk 0:02:39]}  cxd4 {[%clk 0:02:05]} 14. cxd4 {[%clk 0:02:39]}  Bb4+ {[%clk 0:02:04]} 15. Bd2 {[%clk 0:02:33]}  Qb6 {[%clk 0:02:03]} 16. Bc3 {[%clk 0:02:34]}  f6 {[%clk 0:01:41]} 17. exf6 {[%clk 0:02:23]}  Nxf6 {[%clk 0:01:41]} 18. Qd3 {[%clk 0:02:22]}  O-O-O {[%clk 0:01:30]} 19. O-O {[%clk 0:02:03]}  Bd6 {[%clk 0:01:21]} 20. Qh3 {[%clk 0:01:58]}  Kb8 {[%clk 0:01:12]} 21. f4 {[%clk 0:01:58]}  Ka8 {[%clk 0:01:08]} 22. Kh1 {[%clk 0:01:58]}  Qa6 {[%clk 0:00:50]} 23. Rae1 {[%clk 0:01:58]}  Qxa2 {[%clk 0:00:47]} 24. Ng3 {[%clk 0:01:57]}  Rhe8 {[%clk 0:00:43]} 25. g5 {[%clk 0:01:55]}  hxg5 {[%clk 0:00:42]} 26. fxg5 {[%clk 0:01:56]}  Bxg3 {[%clk 0:00:41]} 27. Qxg3 {[%clk 0:01:51]}  Ne4 {[%clk 0:00:42]} 28. Bxe4 {[%clk 0:01:50]}  dxe4 {[%clk 0:00:42]} 29. Rxe4 {[%clk 0:01:50]}  Qd5 {[%clk 0:00:41]} 30. Qf3 {[%clk 0:01:48]}  Qxg5 {[%clk 0:00:39]} 31. Rg1 {[%clk 0:01:47]}  Qd5 {[%clk 0:00:38]} 32. Rf4 {[%clk 0:01:45]}  Qxf3+ {[%clk 0:00:31]} 33. Rxf3 {[%clk 0:01:46]}  Rh8 {[%clk 0:00:31]} 34. Rxg7 {[%clk 0:01:46]}  Rxh5+ {[%clk 0:00:31]} 35. Kg2 {[%clk 0:01:46]}  Rhh8 {[%clk 0:00:25]} 36. Rff7 {[%clk 0:01:46]}  Rhg8 {[%clk 0:00:22]} 37. Rxb7 {[%clk 0:01:46]}  Rxg7+ {[%clk 0:00:22]} 38. Rxg7 {[%clk 0:01:47]}  Nxd4 {[%clk 0:00:22]} 39. Re7 {[%clk 0:01:47]}  Rd6 {[%clk 0:00:18]} 40. Kf2 {[%clk 0:01:44]}  Nc6 {[%clk 0:00:18]} 41. Re8+ {[%clk 0:01:44]}  Kb7 {[%clk 0:00:18]} 42. Ke3 {[%clk 0:01:45]}  Kb6 {[%clk 0:00:16]} 43. Ke4 {[%clk 0:01:44]}  Kc5 {[%clk 0:00:13]} 44. Bf6 {[%clk 0:01:44]}  Rd1 {[%clk 0:00:13]} 45. Rc8 {[%clk 0:01:44]}  Re1+ {[%clk 0:00:13]} 46. Kd3 {[%clk 0:01:44]}  Rd1+ {[%clk 0:00:12]} 47. Ke4 {[%clk 0:01:44]}  Re1+ {[%clk 0:00:13]} 48. Kd3 {[%clk 0:01:43]}  Rd1+ {[%clk 0:00:12]} 49. Kc3 {[%clk 0:01:44]}  Rf1 {[%clk 0:00:11]} 50. Bg5 {[%clk 0:01:39]}  Rf3+ {[%clk 0:00:11]} 51. Kd2 {[%clk 0:01:37]}  Kd5 {[%clk 0:00:11]} 52. Be3 {[%clk 0:01:36]}  Rh3 {[%clk 0:00:11]} 53. b3 {[%clk 0:01:34]}  Rh2+ {[%clk 0:00:11]} 54. Kd3 {[%clk 0:01:34]}  Rb2 {[%clk 0:00:11]} 55. Kc3 {[%clk 0:01:34]}  Re2 {[%clk 0:00:11]} 56. Bg1 {[%clk 0:01:30]}  Rg2 {[%clk 0:00:12]} 57. Be3 {[%clk 0:01:30]}  Rg3 {[%clk 0:00:12]} 58. Kd2 {[%clk 0:01:30]}  Rg2+ {[%clk 0:00:12]} 59. Kd3 {[%clk 0:01:30]}  Ne5+ {[%clk 0:00:11]} 60. Kc3 {[%clk 0:01:27]}  Rg3 {[%clk 0:00:11]} 61. Kd2 {[%clk 0:01:27]}  Ke4 {[%clk 0:00:10]} 62. Bxa7 {[%clk 0:01:25]}  Rxb3 {[%clk 0:00:09]} 63. Re8 {[%clk 0:01:23]}  Rd3+ {[%clk 0:00:09]} 64. Kc2 {[%clk 0:01:24]}  Rh3 {[%clk 0:00:09]} 65. Rxe6 {[%clk 0:01:23]}  Rh2+ {[%clk 0:00:09]} 66. Kb3 {[%clk 0:01:23]}  Kd5 {[%clk 0:00:10]} 67. Re8 {[%clk 0:01:23]}  Rh3+ {[%clk 0:00:10]} 68. Ka4 {[%clk 0:01:23]}  Rh4+ {[%clk 0:00:09]} 69. Kb5 {[%clk 0:01:23]}  Rh1 {[%clk 0:00:09]} 70. Rd8+ {[%clk 0:01:20]}  Ke6 {[%clk 0:00:09]} 71. Bc5 {[%clk 0:01:17]}  Rb1+ {[%clk 0:00:09]} 72. Ka4 {[%clk 0:01:18]}  Ra1+ {[%clk 0:00:09]} 73. Kb3 {[%clk 0:01:18]}  Rc1 {[%clk 0:00:08]} 74. Ba3 {[%clk 0:01:16]}  Rb1+ {[%clk 0:00:08]} 75. Kc2 {[%clk 0:01:16]}  Re1 {[%clk 0:00:08]} 76. Bb2 {[%clk 0:01:16]}  Kf5 {[%clk 0:00:08]} 77. Rf8+ {[%clk 0:01:16]}  Ke4 {[%clk 0:00:07]} 78. Bxe5 {[%clk 0:01:14]}  Re2+ {[%clk 0:00:05]} 79. Kd1 {[%clk 0:01:14]}  Ra2 {[%clk 0:00:05]} 80. Bc3 {[%clk 0:01:11]}  Kd3 {[%clk 0:00:05]} 81. Rf3+ {[%clk 0:01:11]}  Ke4 {[%clk 0:00:05]} 82. Rh3 {[%clk 0:01:11]}  Rg2 {[%clk 0:00:05]} 83. Bd2 {[%clk 0:01:11]}  Rf2 {[%clk 0:00:05]} 84. Kc2 {[%clk 0:01:11]}  Rg2 {[%clk 0:00:05]} 85. Re3+ {[%clk 0:01:10]}  Kd5 {[%clk 0:00:05]} 86. Kd3 {[%clk 0:01:09]}  Rh2 {[%clk 0:00:06]} 87. Rf3 {[%clk 0:01:09]}  Rg2 {[%clk 0:00:06]} 88. Rf5+ {[%clk 0:01:08]}  Kc6 {[%clk 0:00:07]} 89. Bc3 {[%clk 0:01:07]}  Rg3+ {[%clk 0:00:07]} 90. Kc4 {[%clk 0:01:07]}  Rh3 {[%clk 0:00:08]} 91. Bd4 {[%clk 0:01:07]}  Kb7 {[%clk 0:00:08]} 92. Rf6 {[%clk 0:01:07]}  Rh1 {[%clk 0:00:09]} 93. Bc5 {[%clk 0:01:05]}  Kc7 {[%clk 0:00:10]} 94. Kd5 {[%clk 0:01:04]}  Kd7 {[%clk 0:00:10]} 95. Rf7+ {[%clk 0:01:04]}  Kc8 {[%clk 0:00:10]} 96. Kc6 {[%clk 0:01:04]}  Rh8 {[%clk 0:00:10]} 97. Ra7 {[%clk 0:00:57]}  Kb8 {[%clk 0:00:08]} 98. Ra1 {[%clk 0:00:55]}  Rc8+ {[%clk 0:00:07]} 99. Kb6 {[%clk 0:00:55]}  Rd8 {[%clk 0:00:06]} 100. Rb1 {[%clk 0:00:51]}  Kc8 {[%clk 0:00:06]} 101. Kc6 {[%clk 0:00:51]}  Rg8 {[%clk 0:00:06]} 102. Bd6 {[%clk 0:00:50]}  Rd8 {[%clk 0:00:02]} 103. Rb8# {[%clk 0:00:50]} 1-0


[Site "https://www.chess.com"]

[Event "Titled Tuesday Blitz July 27 2021"]
[White "Babiy, Olga"]
[Black "Solon, Nathan"]
[WhiteFideId "14117258"]
[BlackFideId "2017229"]
[WhiteElo "2230"]
[BlackElo "2630"]
[Result "0-1"]
[Round "06"]
[TimeControl "180+1"]
[Date "2021.07.27"]
[WhiteClock "0:00:02"]
[BlackClock "0:00:50"]

1. Nf3 {[%clk 0:02:58]}  d5 {[%clk 0:03:00]} 2. g3 {[%clk 0:02:58]}  g6 {[%clk 0:03:00]} 3. Bg2 {[%clk 0:02:59]}  Bg7 {[%clk 0:03:00]} 4. d4 {[%clk 0:02:56]}  e6 {[%clk 0:02:58]} 5. O-O {[%clk 0:02:55]}  Ne7 {[%clk 0:02:58]} 6. b3 {[%clk 0:02:49]}  c5 {[%clk 0:02:55]} 7. Bb2 {[%clk 0:02:50]}  cxd4 {[%clk 0:02:54]} 8. Bxd4 {[%clk 0:02:48]}  f6 {[%clk 0:02:53]} 9. c4 {[%clk 0:02:36]}  dxc4 {[%clk 0:02:44]} 10. bxc4 {[%clk 0:02:28]}  Nbc6 {[%clk 0:02:45]} 11. Bc5 {[%clk 0:02:14]}  Qa5 {[%clk 0:02:37]} 12. Bxe7 {[%clk 0:01:59]}  Kxe7 {[%clk 0:02:30]} 13. Nbd2 {[%clk 0:01:58]}  Rd8 {[%clk 0:02:27]} 14. Qc2 {[%clk 0:01:44]}  e5 {[%clk 0:02:19]} 15. Nb3 {[%clk 0:01:36]}  Qc7 {[%clk 0:02:19]} 16. Nfd2 {[%clk 0:01:16]}  Bf5 {[%clk 0:02:07]} 17. Ne4 {[%clk 0:01:06]}  Nd4 {[%clk 0:02:00]} 18. Qb2 {[%clk 0:01:06]}  Rac8 {[%clk 0:01:51]} 19. Rac1 {[%clk 0:01:04]}  Kf7 {[%clk 0:01:48]} 20. e3 {[%clk 0:00:53]}  Nc6 {[%clk 0:01:36]} 21. Nec5 {[%clk 0:00:43]}  b6 {[%clk 0:01:28]} 22. Bd5+ {[%clk 0:00:40]}  Ke7 {[%clk 0:01:23]} 23. Ne4 {[%clk 0:00:29]}  Nb4 {[%clk 0:01:13]} 24. Qa3 {[%clk 0:00:29]}  a5 {[%clk 0:01:13]} 25. Nc3 {[%clk 0:00:23]}  Ke8 {[%clk 0:01:03]} 26. Nb5 {[%clk 0:00:23]}  Qe7 {[%clk 0:00:59]} 27. Bg2 {[%clk 0:00:14]}  Bd3 {[%clk 0:00:58]} 28. Rfd1 {[%clk 0:00:13]}  Bxc4 {[%clk 0:00:56]} 29. Rxd8+ {[%clk 0:00:14]}  Qxd8 {[%clk 0:00:56]} 30. Qb2 {[%clk 0:00:09]}  Bxb5 {[%clk 0:00:54]} 31. Rxc8 {[%clk 0:00:10]}  Qxc8 {[%clk 0:00:55]} 32. a3 {[%clk 0:00:09]}  Qc2 {[%clk 0:00:55]} 33. Qa1 {[%clk 0:00:05]}  Nd3 {[%clk 0:00:54]} 34. a4 {[%clk 0:00:02]}  Qxf2+ {[%clk 0:00:51]} 35. Kh1 {[%clk 0:00:02]}  Ne1 {[%clk 0:00:50]} 36. Bd5 {[%clk 0:00:02]}  Qf1# {[%clk 0:00:50]} 0-1


[Site "https://www.chess.com"]